[Event "Masters Tournament (MTO)"]
[Site "Biel, Switzerland"]
[Date "2026.07.16"]
[Round "4.24"]
[White "Tan, Jimmy"]
[Black "Cervelli, Eduard"]
[Result "1/2-1/2"]
[TimeControl "100+30+30sec/move"]
[WhiteTitle "-"]
[BlackTitle "-"]
[WhiteFideId "129057499"]
[BlackFideId "1351800"]
[WhiteElo "1953"]
[BlackElo "2197"]

1. d4 {[%clk 01:40:53]} {[%emt 00:00:07]} Nf6 {[%clk 01:40:45]} {[%emt
00:00:14]} 2. Bf4 {[%clk 01:41:07]} {[%emt 00:00:16]} g6 {[%clk 01:40:58]}
{[%emt 00:00:16]} 3. Nc3 {[%clk 01:41:06]} {[%emt 00:00:31]} d5 {[%clk
01:41:19]} {[%emt 00:00:08]} 4. e3 {[%clk 01:41:24]} {[%emt 00:00:12]} Bg7
{[%clk 01:41:40]} {[%emt 00:00:09]} 5. h4 {[%clk 01:41:22]} {[%emt 00:00:33]}
h5 {[%clk 01:41:59]} {[%emt 00:00:11]} 6. Nf3 {[%clk 01:40:56]} {[%emt
00:00:55]} O-O {[%clk 01:42:18]} {[%emt 00:00:11]} 7. Ne5 {[%clk 01:40:24]}
{[%emt 00:01:03]} c5 {[%clk 01:42:35]} {[%emt 00:00:12]} 8. Be2 {[%clk
01:34:17]} {[%emt 00:06:38]} cxd4 {[%clk 01:42:03]} {[%emt 00:01:02]} 9. exd4
{[%clk 01:34:39]} {[%emt 00:00:09]} Nc6 {[%clk 01:42:24]} {[%emt 00:00:09]} 10.
Qd2 {[%clk 01:32:44]} {[%emt 00:02:25]} Bf5 {[%clk 01:38:46]} {[%emt 00:04:07]}
11. f3 {[%clk 01:28:05]} {[%emt 00:05:10]} Rc8 {[%clk 01:28:13]} {[%emt
00:11:02]} 12. a3 {[%clk 01:16:46]} {[%emt 00:11:49]} a5 {[%clk 01:19:11]}
{[%emt 00:09:32]} 13. Bb5 {[%clk 01:02:07]} {[%emt 00:15:09]} Qb6 {[%clk
01:13:26]} {[%emt 00:06:15]} 14. Bxc6 {[%clk 01:00:24]} {[%emt 00:02:13]} bxc6
{[%clk 01:13:15]} {[%emt 00:00:41]} 15. b3 {[%clk 00:48:42]} {[%emt 00:12:12]}
c5 {[%clk 01:04:54]} {[%emt 00:08:51]} 16. Na4 {[%clk 00:47:09]} {[%emt
00:02:03]} Qe6 {[%clk 01:05:07]} {[%emt 00:00:16]} 17. Nxc5 {[%clk 00:44:56]}
{[%emt 00:02:44]} Rxc5 {[%clk 01:05:05]} {[%emt 00:00:31]} 18. dxc5 {[%clk
00:45:14]} {[%emt 00:00:12]} Nd7 {[%clk 01:05:03]} {[%emt 00:00:31]} 19. O-O
{[%clk 00:37:49]} {[%emt 00:07:56]} Bxe5 {[%clk 00:56:37]} {[%emt 00:08:56]} 20.
Bxe5 {[%clk 00:35:25]} {[%emt 00:02:55]} Qxe5 {[%clk 00:53:09]} {[%emt
00:03:57]} 21. Rfe1 {[%clk 00:35:05]} {[%emt 00:00:50]} Qc7 {[%clk 00:46:08]}
{[%emt 00:07:31]} 22. Qxd5 {[%clk 00:34:41]} {[%emt 00:00:55]} e6 {[%clk
00:45:12]} {[%emt 00:01:26]} 23. Qd6 {[%clk 00:30:33]} {[%emt 00:04:39]} Qxc5+
{[%clk 00:17:17]} {[%emt 00:28:24]} 24. Qxc5 {[%clk 00:31:01]} {[%emt
00:00:03]} Nxc5 {[%clk 00:17:39]} {[%emt 00:00:07]} 25. b4 {[%clk 00:31:01]}
{[%emt 00:00:30]} Na6 {[%clk 00:17:39]} {[%emt 00:00:30]} 26. b5 {[%clk
00:28:59]} {[%emt 00:02:33]} Nc5 {[%clk 00:17:21]} {[%emt 00:00:47]} 27. Re2
{[%clk 00:20:41]} {[%emt 00:08:48]} a4 {[%clk 00:14:04]} {[%emt 00:03:47]} 28.
Ra2 {[%clk 00:17:30]} {[%emt 00:03:41]} Rb8 {[%clk 00:06:12]} {[%emt 00:08:22]}
29. Rb2 {[%clk 00:17:45]} {[%emt 00:00:15]} Kf8 {[%clk 00:05:58]} {[%emt
00:00:45]} 30. Rb4 {[%clk 00:16:50]} {[%emt 00:01:26]} Ke7 {[%clk 00:05:45]}
{[%emt 00:00:42]} 31. g4 {[%clk 00:15:36]} {[%emt 00:01:44]} hxg4 {[%clk
00:05:53]} {[%emt 00:00:22]} 32. fxg4 {[%clk 00:16:05]} {[%emt 00:00:01]} Be4
{[%clk 00:04:12]} {[%emt 00:02:11]} 33. Rexe4 {[%clk 00:16:19]} {[%emt
00:00:16]} Nxe4 {[%clk 00:04:38]} {[%emt 00:00:04]} 34. Rxe4 {[%clk 00:16:46]}
{[%emt 00:00:03]} Rxb5 {[%clk 00:04:39]} {[%emt 00:00:30]} 35. Rxa4 {[%clk
00:16:59]} {[%emt 00:00:16]} Rb2 {[%clk 00:04:37]} {[%emt 00:00:32]} 36. Ra7+
{[%clk 00:13:31]} {[%emt 00:03:58]} Kf6 {[%clk 00:03:20]} {[%emt 00:01:47]} 37.
g5+ {[%clk 00:12:06]} {[%emt 00:01:56]} Ke5 {[%clk 00:03:40]} {[%emt 00:00:09]}
38. Rxf7 {[%clk 00:11:26]} {[%emt 00:01:10]} Rxc2 {[%clk 00:03:57]} {[%emt
00:00:13]} 39. h5 {[%clk 00:05:08]} {[%emt 00:06:48]} gxh5 {[%clk 00:03:29]}
{[%emt 00:00:58]} 40. g6 {[%clk 00:05:25]} {[%emt 00:00:13]} Rc4 {[%clk
00:02:03]} {[%emt 00:01:55]} 41. Rf2 {[%clk 00:01:26]} {[%emt 00:04:30]} Rc7
{[%clk 00:25:32]} {[%emt 00:07:00]} 42. Rf7 {[%clk 00:31:34]} {[%emt 00:00:22]}
Rc4 {[%emt 00:01:00]} 43. Rf2 {[%clk 00:31:58]} Rc7 {[%clk 00:25:34]} {[%emt
00:00:05]} 44. Rg2 {[%clk 00:26:23]} {[%emt 00:06:05]} Rg7 {[%clk 00:25:53]}
{[%emt 00:00:10]} 45. a4 {[%clk 00:26:42]} {[%emt 00:00:13]} Kd6 {[%clk
00:26:10]} {[%emt 00:00:12]} 46. Kh2 {[%clk 00:26:23]} {[%emt 00:00:48]} Ke7
{[%clk 00:25:50]} {[%emt 00:00:50]} 47. a5 {[%clk 00:26:18]} {[%emt 00:00:36]}
Kf8 {[%clk 00:26:08]} {[%emt 00:00:12]} 48. Kh3 {[%clk 00:23:54]} {[%emt
00:02:54]} Ra7 {[%clk 00:23:43]} {[%emt 00:02:54]} 49. Rg5 {[%clk 00:20:42]}
{[%emt 00:03:42]} Kg7 {[%clk 00:23:41]} {[%emt 00:00:32]} 50. Kh4 {[%clk
00:19:32]} {[%emt 00:01:40]} e5 {[%clk 00:24:05]} {[%emt 00:00:06]} 51. Kxh5
{[%clk 00:18:16]} {[%emt 00:01:46]} Rxa5 {[%clk 00:24:30]} {[%emt 00:00:05]} 52.
Rf5 {[%clk 00:18:32]} {[%emt 00:00:14]} Ra8 {[%clk 00:24:47]} {[%emt 00:00:13]}
53. Rf7+ {[%clk 00:17:33]} {[%emt 00:01:30]} Kg8 {[%clk 00:25:08]} {[%emt
00:00:08]} 54. Re7 {[%clk 00:17:44]} {[%emt 00:00:20]} e4 {[%clk 00:25:31]}
{[%emt 00:00:05]} 55. Kh6 {[%clk 00:17:30]} {[%emt 00:00:45]} e3 {[%clk
00:25:51]} {[%emt 00:00:10]} 56. Rxe3 {[%clk 00:17:52]} {[%emt 00:00:08]} Rb8
{[%clk 00:26:16]} {[%emt 00:00:05]} 57. Re7 {[%clk 00:16:52]} {[%emt 00:01:31]}
Ra8 {[%clk 00:26:33]} {[%emt 00:00:13]} 58. Kg5 {[%clk 00:17:02]} {[%emt
00:00:21]} Rb8 {[%clk 00:26:20]} {[%emt 00:00:42]} 59. Kf6 {[%clk 00:16:59]}
{[%emt 00:00:33]} Rb6+ {[%clk 00:26:25]} {[%emt 00:00:24]} 60. Re6 {[%clk
00:17:09]} {[%emt 00:00:21]} Rxe6+ {[%clk 00:26:34]} {[%emt 00:00:22]} 61. Kxe6
{[%clk 00:17:38]} {[%emt 00:00:01]} Kg7 {[%clk 00:26:55]} {[%emt 00:00:07]} 62.
Kf5 {[%clk 00:18:04]} {[%emt 00:00:05]} Kg8 {[%clk 00:27:19]} {[%emt 00:00:06]}
63. Kg4 {[%clk 00:18:23]} {[%emt 00:00:12]} Kg7 {[%clk 00:27:42]} {[%emt
00:00:06]} 64. Kg5 {[%clk 00:18:47]} {[%emt 00:00:06]} Kg8 {[%clk 00:28:04]}
{[%emt 00:00:07]} 65. Kf6 {[%clk 00:19:12]} {[%emt 00:00:06]} Kf8 {[%clk
00:28:30]} {[%emt 00:00:04]} 66. g7+ {[%clk 00:19:38]} {[%emt 00:00:04]} Kg8
{[%clk 00:28:56]} {[%emt 00:00:03]} 67. Kg6 {[%clk 00:19:36]} {[%emt 00:00:03]}
1/2-1/2

[Event "Masters Tournament (MTO)"]
[Site "Biel, Switzerland"]
[Date "2026.07.16"]
[Round "4.25"]
[White "Ivana Maria, Furtado"]
[Black "Aryan, Mehta"]
[Result "1-0"]
[TimeControl "100+30+30sec/move"]
[WhiteTitle "-"]
[BlackTitle "-"]
[WhiteFideId "5048400"]
[BlackFideId "33329664"]
[WhiteElo "2182"]
[BlackElo "1979"]

1. d4 {[%clk 01:40:46]} {[%emt 00:00:14]} Nf6 {[%clk 01:40:40]} {[%emt
00:00:18]} 2. c4 {[%clk 01:41:03]} {[%emt 00:00:14]} e6 {[%clk 01:41:02]}
{[%emt 00:00:07]} 3. g3 {[%clk 01:40:20]} {[%emt 00:01:14]} Bb4+ {[%clk
01:41:18]} {[%emt 00:00:13]} 4. Bd2 {[%clk 01:40:17]} {[%emt 00:00:34]} Qe7
{[%clk 01:41:24]} {[%emt 00:00:23]} 5. Bg2 {[%clk 01:40:20]} {[%emt 00:00:27]}
Nc6 {[%clk 01:37:50]} {[%emt 00:04:05]} 6. e3 {[%clk 01:33:56]} {[%emt
00:06:53]} O-O {[%clk 01:33:14]} {[%emt 00:05:06]} 7. Ne2 {[%clk 01:23:14]}
{[%emt 00:11:13]} Bxd2+ {[%clk 01:28:39]} {[%emt 00:05:04]} 8. Nxd2 {[%clk
01:23:01]} {[%emt 00:00:44]} d6 {[%clk 01:21:10]} {[%emt 00:07:59]} 9. O-O
{[%clk 01:20:57]} {[%emt 00:02:34]} e5 {[%clk 01:12:59]} {[%emt 00:08:41]} 10.
d5 {[%clk 01:18:50]} {[%emt 00:02:39]} Nb8 {[%clk 01:11:53]} {[%emt 00:01:35]}
11. b4 {[%clk 01:17:39]} {[%emt 00:01:42]} a5 {[%clk 00:55:39]} {[%emt
00:16:44]} 12. a3 {[%clk 01:17:09]} {[%emt 00:01:00]} Nfd7 {[%clk 00:53:48]}
{[%emt 00:02:20]} 13. Nb3 {[%clk 01:08:11]} {[%emt 00:09:29]} a4 {[%clk
00:53:28]} {[%emt 00:00:49]} 14. Nd2 {[%clk 01:06:28]} {[%emt 00:02:12]} f5
{[%clk 00:50:02]} {[%emt 00:03:56]} 15. Qc2 {[%clk 00:59:36]} {[%emt 00:07:23]}
g5 {[%clk 00:40:23]} {[%emt 00:10:09]} 16. Nc3 {[%clk 00:58:16]} {[%emt
00:01:51]} e4 {[%clk 00:29:11]} {[%emt 00:11:41]} 17. Nxa4 {[%clk 00:53:30]}
{[%emt 00:05:16]} Ne5 {[%clk 00:28:45]} {[%emt 00:00:56]} 18. Nc3 {[%clk
00:50:42]} {[%emt 00:03:18]} g4 {[%clk 00:25:58]} {[%emt 00:03:17]} 19. Ne2
{[%clk 00:49:52]} {[%emt 00:01:20]} Nf3+ {[%clk 00:24:07]} {[%emt 00:02:21]} 20.
Bxf3 {[%clk 00:47:52]} {[%emt 00:02:29]} gxf3 {[%clk 00:23:34]} {[%emt
00:01:03]} 21. Nf4 {[%clk 00:48:16]} {[%emt 00:00:06]} Nd7 {[%clk 00:22:43]}
{[%emt 00:01:22]} 22. Rfc1 {[%clk 00:45:27]} {[%emt 00:03:19]} Ne5 {[%clk
00:20:21]} {[%emt 00:02:52]} 23. c5 {[%clk 00:42:35]} {[%emt 00:03:22]} Rf6
{[%clk 00:19:16]} {[%emt 00:01:35]} 24. cxd6 {[%clk 00:38:53]} {[%emt
00:04:13]} cxd6 {[%clk 00:19:40]} {[%emt 00:00:06]} 25. Nc4 {[%clk 00:36:01]}
{[%emt 00:03:22]} Nd3 {[%clk 00:12:40]} {[%emt 00:07:29]} 26. Nxd3 {[%clk
00:34:18]} {[%emt 00:02:13]} exd3 {[%clk 00:13:05]} {[%emt 00:00:05]} 27. Qxd3
{[%clk 00:34:44]} {[%emt 00:00:04]} Qe8 {[%clk 00:06:47]} {[%emt 00:06:47]} 28.
Nb6 {[%clk 00:30:34]} {[%emt 00:04:41]} Qh5 {[%clk 00:03:35]} {[%emt 00:03:42]}
29. Nxc8 {[%clk 00:27:13]} {[%emt 00:03:52]} Rh6 {[%clk 00:03:00]} {[%emt
00:01:04]} 30. Ne7+ {[%clk 00:26:14]} {[%emt 00:01:28]} 1-0

[Event "Masters Tournament (MTO)"]
[Site "Biel, Switzerland"]
[Date "2026.07.16"]
[Round "4.26"]
[White "Lumsdon, Andrew"]
[Black "Fogo Esquivel, Levi Kalani Alexander"]
[Result "0-1"]
[TimeControl "100+30+30sec/move"]
[WhiteTitle "-"]
[BlackTitle "-"]
[WhiteFideId "1308840"]
[BlackFideId "5183189"]
[WhiteElo "2033"]
[BlackElo "2125"]

1. e4 {[%clk 01:40:56]} e5 {[%clk 01:38:23]} {[%emt 00:02:38]} 2. Nf3 {[%clk
01:41:14]} {[%emt 00:00:11]} Nc6 {[%clk 01:38:48]} {[%emt 00:00:07]} 3. Nc3
{[%clk 01:41:39]} {[%emt 00:00:05]} Nf6 {[%clk 01:39:13]} {[%emt 00:00:04]} 4.
g3 {[%clk 01:42:03]} {[%emt 00:00:06]} Nxe4 {[%clk 01:39:40]} {[%emt 00:00:03]}
5. Nxe4 {[%clk 01:41:34]} {[%emt 00:00:59]} d5 {[%clk 01:40:05]} {[%emt
00:00:05]} 6. Bb5 {[%clk 01:39:12]} {[%emt 00:02:52]} dxe4 {[%clk 01:39:42]}
{[%emt 00:00:54]} 7. Nxe5 {[%clk 01:39:33]} {[%emt 00:00:09]} Qd5 {[%clk
01:39:32]} {[%emt 00:00:40]} 8. Nxc6 {[%emt 00:05:16]} Qxb5 {[%emt 00:00:49]} 9.
Nd4 {[%clk 01:32:19]} {[%emt 00:01:39]} Qd5 {[%clk 01:34:41]} {[%emt 00:05:20]}
10. c3 {[%clk 01:32:38]} {[%emt 00:00:11]} Bc5 {[%clk 01:30:52]} {[%emt
00:04:20]} 11. Qb3 {[%clk 01:29:46]} {[%emt 00:03:21]} Qe5 {[%clk 01:31:12]}
{[%emt 00:00:11]} 12. O-O {[%clk 01:28:02]} {[%emt 00:02:14]} O-O {[%clk
01:29:12]} {[%emt 00:02:30]} 13. Ne2 {[%clk 01:22:07]} {[%emt 00:06:25]} Be6
{[%clk 01:27:50]} {[%emt 00:01:51]} 14. Qc2 {[%clk 01:20:38]} {[%emt 00:01:59]}
Bc4 {[%clk 01:25:04]} {[%emt 00:03:16]} 15. Re1 {[%clk 01:20:14]} {[%emt
00:00:54]} Bd3 {[%clk 01:25:28]} {[%emt 00:00:06]} 16. Qb3 {[%clk 01:20:29]}
{[%emt 00:00:12]} Qh5 {[%clk 01:25:07]} {[%emt 00:00:54]} 17. Nf4 {[%clk
01:17:59]} {[%emt 00:03:00]} Qf3 {[%clk 01:24:38]} {[%emt 00:00:59]} 18. Nxd3
{[%clk 01:18:22]} {[%emt 00:00:07]} exd3 {[%clk 01:25:07]} {[%emt 00:00:02]} 19.
Rf1 {[%clk 01:18:26]} {[%emt 00:00:25]} Rae8 {[%clk 01:25:31]} {[%emt
00:00:06]} 20. Qc4 {[%clk 01:15:24]} {[%emt 00:03:32]} Bxf2+ {[%clk 01:25:54]}
{[%emt 00:00:08]} 0-1

[Event "Masters Tournament (MTO)"]
[Site "Biel, Switzerland"]
[Date "2026.07.16"]
[Round "4.27"]
[White "Udelnov, Valentin"]
[Black "Morrison, Joseph"]
[Result "1-0"]
[TimeControl "100+30+30sec/move"]
[WhiteTitle "-"]
[BlackTitle "-"]
[WhiteFideId "16265734"]
[BlackFideId "479535"]
[WhiteElo "2269"]
[BlackElo "2048"]

1. e4 {[%clk 01:39:04]} {[%emt 00:01:55]} c6 {[%clk 01:40:54]} {[%emt
00:00:06]} 2. d4 {[%clk 01:39:30]} {[%emt 00:00:04]} d5 {[%clk 01:41:20]}
{[%emt 00:00:05]} 3. e5 {[%clk 01:39:56]} {[%emt 00:00:03]} c5 {[%clk
01:41:45]} {[%emt 00:00:05]} 4. dxc5 {[%clk 01:40:20]} {[%emt 00:00:06]} Nc6
{[%emt 00:00:11]} 5. f4 {[%clk 01:40:46]} Nh6 {[%clk 01:42:18]} {[%emt
00:00:19]} 6. Be3 {[%clk 01:40:43]} {[%emt 00:00:34]} Nf5 {[%clk 01:26:40]}
{[%emt 00:16:07]} 7. Bf2 {[%clk 01:40:50]} {[%emt 00:00:24]} h5 {[%clk
01:25:40]} {[%emt 00:01:30]} 8. Nf3 {[%clk 01:39:47]} {[%emt 00:01:33]} e6
{[%clk 01:25:03]} {[%emt 00:01:06]} 9. Nbd2 {[%clk 01:37:38]} {[%emt 00:02:40]}
Qa5 {[%clk 01:21:29]} {[%emt 00:04:05]} 10. Bd3 {[%clk 01:27:56]} {[%emt
00:10:12]} Bxc5 {[%clk 01:20:19]} {[%emt 00:01:39]} 11. Qe2 {[%clk 01:16:32]}
{[%emt 00:11:54]} Bxf2+ {[%clk 01:10:45]} {[%emt 00:10:03]} 12. Qxf2 {[%clk
01:16:39]} {[%emt 00:00:24]} Qb4 {[%clk 01:10:22]} {[%emt 00:00:53]} 13. Bxf5
{[%clk 01:07:14]} {[%emt 00:09:56]} exf5 {[%clk 01:10:17]} {[%emt 00:00:34]} 14.
Qg3 {[%clk 01:06:29]} {[%emt 00:01:16]} g6 {[%clk 01:04:22]} {[%emt 00:06:24]}
15. O-O {[%clk 01:03:54]} {[%emt 00:03:06]} h4 {[%clk 00:56:18]} {[%emt
00:08:33]} 16. Qg5 {[%clk 00:50:37]} {[%emt 00:13:47]} Rh5 {[%clk 00:55:01]}
{[%emt 00:01:47]} 17. Qf6 {[%clk 00:51:02]} {[%emt 00:00:05]} Qxf4 {[%clk
00:53:21]} {[%emt 00:02:11]} 18. c4 {[%clk 00:39:52]} {[%emt 00:11:40]} Be6
{[%clk 00:45:08]} {[%emt 00:08:42]} 19. Rae1 {[%clk 00:40:14]} {[%emt
00:00:09]} Nd8 {[%clk 00:35:34]} {[%emt 00:10:03]} 20. Rf2 {[%clk 00:33:22]}
{[%emt 00:07:22]} Rc8 {[%emt 00:06:13]} 21. cxd5 {[%clk 00:32:36]} Bxd5 {[%clk
00:31:26]} {[%emt 00:00:11]} 22. Qd6 {[%clk 00:32:31]} {[%emt 00:00:35]} Be6
{[%clk 00:18:27]} {[%emt 00:13:28]} 23. Nd4 {[%clk 00:30:33]} {[%emt 00:02:29]}
Qg5 {[%clk 00:18:30]} {[%emt 00:00:27]} 24. Nb5 {[%clk 00:17:50]} {[%emt
00:13:14]} Qe7 {[%clk 00:18:06]} {[%emt 00:00:54]} 25. Qd3 {[%clk 00:18:08]}
{[%emt 00:00:11]} Rc5 {[%clk 00:16:59]} {[%emt 00:01:37]} 26. Nd6+ {[%clk
00:17:32]} {[%emt 00:01:07]} Kf8 {[%clk 00:17:22]} {[%emt 00:00:06]} 27. Nf3
{[%clk 00:16:24]} {[%emt 00:01:38]} Nc6 {[%clk 00:17:06]} {[%emt 00:00:44]} 28.
Qe3 {[%clk 00:12:46]} {[%emt 00:04:10]} Ra5 {[%clk 00:16:35]} {[%emt 00:01:00]}
29. b4 {[%clk 00:09:33]} {[%emt 00:03:45]} Rd5 {[%clk 00:15:25]} {[%emt
00:01:38]} 30. Rd2 {[%clk 00:08:39]} {[%emt 00:01:25]} a6 {[%clk 00:10:37]}
{[%emt 00:05:18]} 31. a3 {[%clk 00:08:16]} {[%emt 00:00:53]} g5 {[%clk
00:07:42]} {[%emt 00:03:25]} 32. Nxf5 {[%clk 00:07:20]} {[%emt 00:01:25]} Qd7
{[%clk 00:07:01]} {[%emt 00:01:11]} 33. Nd6 {[%clk 00:07:11]} {[%emt 00:00:40]}
Rxd2 {[%clk 00:03:00]} {[%emt 00:04:30]} 34. Nxd2 {[%clk 00:06:53]} {[%emt
00:00:49]} g4 {[%clk 00:02:51]} {[%emt 00:00:39]} 35. Qc5 {[%clk 00:06:45]}
{[%emt 00:00:38]} Kg7 {[%clk 00:03:05]} {[%emt 00:00:16]} 36. Qc3 {[%clk
00:05:18]} {[%emt 00:01:58]} Ne7 {[%clk 00:02:25]} {[%emt 00:01:09]} 37. N2e4
{[%clk 00:04:58]} {[%emt 00:00:50]} Qc6 {[%clk 00:02:20]} {[%emt 00:00:35]} 38.
Nc5 {[%clk 00:04:19]} {[%emt 00:01:09]} b6 {[%clk 00:01:30]} {[%emt 00:01:19]}
39. Nxe6+ {[%clk 00:04:28]} {[%emt 00:00:22]} fxe6 {[%clk 00:01:53]} {[%emt
00:00:07]} 40. Qd4 {[%clk 00:03:54]} {[%emt 00:01:04]} Rh6 {[%clk 00:00:47]}
{[%emt 00:01:36]} 41. Rf1 {[%clk 00:22:19]} {[%emt 00:12:05]} Nf5 {[%clk
00:25:36]} {[%emt 00:05:40]} 42. Nxf5+ {[%clk 00:21:59]} {[%emt 00:00:50]} exf5
{[%clk 00:26:00]} {[%emt 00:00:06]} 43. Rxf5 {[%clk 00:22:16]} {[%emt
00:00:14]} Kh7 {[%clk 00:23:18]} {[%emt 00:03:12]} 44. Rf7+ {[%clk 00:14:34]}
{[%emt 00:08:11]} Kg8 {[%clk 00:23:18]} {[%emt 00:00:29]} 45. e6 {[%clk
00:14:50]} {[%emt 00:00:15]} Qc1+ {[%clk 00:22:37]} {[%emt 00:01:11]} 46. Rf1
{[%clk 00:15:12]} {[%emt 00:00:08]} Qg5 {[%clk 00:22:57]} {[%emt 00:00:10]} 47.
Qxb6 {[%clk 00:07:15]} {[%emt 00:08:27]} 1-0

[Event "Masters Tournament (MTO)"]
[Site "Biel, Switzerland"]
[Date "2026.07.16"]
[Round "4.28"]
[White "Joly, Julien"]
[Black "Heitmann, Erik"]
[Result "1-0"]
[TimeControl "100+30+30sec/move"]
[WhiteTitle "-"]
[BlackTitle "-"]
[WhiteFideId "26082284"]
[BlackFideId "34608940"]
[WhiteElo "2257"]
[BlackElo "1949"]

1. e4 {[%clk 01:40:52]} {[%emt 00:00:07]} c5 {[%clk 01:40:53]} {[%emt
00:00:07]} 2. Nf3 {[%clk 01:40:59]} {[%emt 00:00:22]} d6 {[%clk 01:41:17]}
{[%emt 00:00:06]} 3. d4 {[%clk 01:40:49]} {[%emt 00:00:39]} cxd4 {[%clk
01:41:42]} {[%emt 00:00:05]} 4. Nxd4 {[%clk 01:40:55]} {[%emt 00:00:23]} Nf6
{[%clk 01:42:08]} {[%emt 00:00:06]} 5. Nc3 {[%clk 01:40:54]} {[%emt 00:00:30]}
a6 {[%clk 01:42:35]} {[%emt 00:00:04]} 6. g3 {[%clk 01:40:31]} {[%emt
00:00:52]} e5 {[%clk 01:42:10]} {[%emt 00:00:56]} 7. Nb3 {[%clk 01:40:30]}
{[%emt 00:00:29]} Qc7 {[%clk 01:40:46]} {[%emt 00:01:56]} 8. Bg5 {[%clk
01:38:13]} {[%emt 00:02:46]} Nbd7 {[%clk 01:40:18]} {[%emt 00:00:59]} 9. a4
{[%clk 01:37:18]} {[%emt 00:01:25]} b6 {[%clk 01:39:48]} {[%emt 00:01:01]} 10.
Bg2 {[%clk 01:29:51]} {[%emt 00:07:56]} h6 {[%clk 01:39:15]} {[%emt 00:01:03]}
11. Be3 {[%clk 01:30:09]} {[%emt 00:00:11]} Bb7 {[%clk 01:38:53]} {[%emt
00:00:50]} 12. O-O {[%clk 01:22:26]} {[%emt 00:08:14]} Be7 {[%clk 01:38:52]}
{[%emt 00:00:31]} 13. Re1 {[%clk 01:11:18]} {[%emt 00:11:38]} h5 {[%clk
01:31:26]} {[%emt 00:07:58]} 14. h3 {[%clk 01:10:32]} {[%emt 00:01:15]} O-O
{[%clk 01:25:37]} {[%emt 00:06:19]} 15. Qe2 {[%clk 01:01:04]} {[%emt 00:09:57]}
Rac8 {[%clk 01:23:37]} {[%emt 00:02:30]} 16. Nd2 {[%clk 01:01:00]} {[%emt
00:00:33]} Rfe8 {[%clk 01:13:04]} {[%emt 00:11:05]} 17. Rac1 {[%clk 00:56:48]}
{[%emt 00:04:41]} Bf8 {[%clk 01:07:37]} {[%emt 00:05:57]} 18. g4 {[%clk
00:45:20]} {[%emt 00:11:59]} hxg4 {[%clk 01:04:53]} {[%emt 00:03:14]} 19. hxg4
{[%clk 00:45:49]} {[%emt 00:00:02]} g6 {[%clk 01:03:55]} {[%emt 00:01:27]} 20.
Bf3 {[%clk 00:39:16]} {[%emt 00:07:02]} Nc5 {[%clk 01:00:12]} {[%emt 00:04:14]}
21. g5 {[%clk 00:38:50]} {[%emt 00:00:56]} Nh7 {[%clk 00:55:48]} {[%emt
00:04:53]} 22. Bg4 {[%clk 00:33:53]} {[%emt 00:05:28]} Rcd8 {[%clk 00:53:34]}
{[%emt 00:02:44]} 23. Qc4 {[%clk 00:32:25]} {[%emt 00:01:57]} a5 {[%clk
00:45:41]} {[%emt 00:08:24]} 24. Nd5 {[%clk 00:26:30]} {[%emt 00:06:24]} Bxd5
{[%clk 00:41:26]} {[%emt 00:04:46]} 25. exd5 {[%clk 00:26:58]} Qe7 {[%clk
00:29:30]} {[%emt 00:12:27]} 26. Nf3 {[%clk 00:21:33]} {[%emt 00:05:54]} Bg7
{[%clk 00:28:11]} {[%emt 00:01:50]} 27. Rb1 {[%clk 00:14:30]} {[%emt 00:07:32]}
e4 {[%clk 00:20:41]} {[%emt 00:08:00]} 28. Bf4 {[%clk 00:14:44]} {[%emt
00:00:16]} f5 {[%clk 00:20:12]} {[%emt 00:00:59]} 29. Bh3 {[%clk 00:15:13]}
{[%emt 00:00:02]} Qd7 {[%clk 00:17:31]} {[%emt 00:03:10]} 30. Nd4 {[%clk
00:11:00]} {[%emt 00:04:43]} Qxa4 {[%clk 00:17:29]} {[%emt 00:00:33]} 31. Qxa4
{[%clk 00:10:58]} {[%emt 00:00:32]} Nxa4 {[%clk 00:17:58]} {[%emt 00:00:02]} 32.
Ne6 {[%clk 00:11:18]} {[%emt 00:00:09]} Rd7 {[%clk 00:16:48]} {[%emt 00:01:40]}
33. Bf1 {[%clk 00:11:37]} {[%emt 00:00:10]} Ree7 {[%clk 00:08:50]} {[%emt
00:08:29]} 34. Bb5 {[%clk 00:11:08]} {[%emt 00:00:59]} Nc5 {[%clk 00:09:17]}
{[%emt 00:00:02]} 35. Bxd7 {[%clk 00:11:11]} {[%emt 00:00:28]} Rxd7 {[%clk
00:08:40]} {[%emt 00:01:08]} 36. Nxg7 {[%clk 00:11:39]} Kxg7 {[%emt 00:00:31]}
37. b4 {[%clk 00:11:50]} Nb7 {[%clk 00:07:15]} {[%emt 00:02:13]} 38. bxa5
{[%clk 00:11:20]} {[%emt 00:01:00]} bxa5 {[%clk 00:07:25]} {[%emt 00:00:20]} 39.
Rb6 {[%clk 00:11:29]} {[%emt 00:00:19]} a4 {[%clk 00:02:03]} {[%emt 00:05:54]}
40. Ra1 {[%clk 00:11:00]} {[%emt 00:00:58]} Kf7 {[%clk 00:01:53]} {[%emt
00:00:39]} 41. Rxa4 {[%clk 00:09:07]} {[%emt 00:02:24]} Nc5 {[%clk 00:01:50]}
{[%emt 00:00:34]} 42. Ra8 {[%clk 00:09:34]} {[%emt 00:00:02]} Ke7 {[%clk
00:02:00]} {[%emt 00:00:20]} 43. Rh8 {[%clk 00:08:32]} {[%emt 00:01:32]} Nf8
{[%clk 00:02:01]} {[%emt 00:00:30]} 44. Rxf8 {[%clk 00:08:17]} {[%emt
00:00:45]} Kxf8 {[%clk 00:02:13]} {[%emt 00:00:17]} 45. Bxd6+ {[%clk 00:08:41]}
{[%emt 00:00:07]} Kf7 {[%clk 00:02:10]} {[%emt 00:00:31]} 46. Bxc5 {[%clk
00:09:05]} {[%emt 00:00:08]} Rxd5 {[%clk 00:02:37]} {[%emt 00:00:03]} 47. Rb7+
{[%clk 00:08:55]} {[%emt 00:00:39]} Kg8 {[%clk 00:01:11]} {[%emt 00:01:55]} 48.
Be3 {[%clk 00:09:04]} {[%emt 00:00:22]} Rd6 {[%clk 00:00:51]} {[%emt 00:00:52]}
49. Rb6 {[%clk 00:05:44]} {[%emt 00:03:50]} Rd1+ {[%clk 00:01:14]} {[%emt
00:00:06]} 50. Kg2 {[%clk 00:06:09]} {[%emt 00:00:05]} Kf7 {[%clk 00:01:43]} 51.
c4 {[%clk 00:06:31]} {[%emt 00:00:07]} Rd3 {[%clk 00:02:00]} {[%emt 00:00:12]}
52. c5 {[%clk 00:06:41]} {[%emt 00:00:22]} Rc3 {[%clk 00:02:26]} {[%emt
00:00:04]} 53. Rf6+ {[%clk 00:06:54]} {[%emt 00:00:15]} Kg7 {[%clk 00:02:48]}
{[%emt 00:00:10]} 54. Rxf5 {[%clk 00:06:42]} {[%emt 00:00:42]} 1-0